fUSD/lending_fUSD_20250507
["ID","MTS","AMOUNT","RATE_DAILY","PERIOD"]
[360150421,1746576648867,-607.73,0.00019684,2]
[360150422,1746576648876,-811.18,0.00019684,2]
[360150423,1746576648886,-1384.57,0.00019684,2]
[360150424,1746576648895,-450.0,0.00019684,2]
[360150425,1746576648905,-1070.79,0.00019684,2]
[360150426,1746576648914,-450.0,0.00019684,2]
[360150427,1746576648924,-1070.79,0.00019684,2]
[360150428,1746576648934,-450.0,0.00019684,2]
[360150429,1746576648944,-524.91495127,0.00019684,2]
[360150430,1746576648954,-460.01,0.00019684,2]
[360150431,1746576648964,-450.0,0.00019684,2]
[360150432,1746576648974,-450.0,0.00019684,2]
[360150433,1746576648984,-1368.4,0.00019684,2]
[360150434,1746576648993,-861.33,0.00019684,2]
[360150435,1746576649003,-861.33,0.00019684,2]
[360150436,1746576649012,-1401.46,0.00019684,2]
[360150437,1746576649022,-1401.46,0.00019684,2]
[360150438,1746576649031,-952.38,0.00019684,2]
[360150439,1746576649041,-952.38,0.00019684,2]
[360150440,1746576649050,-450.0,0.00019684,2]
[360150441,1746576649060,-683.04,0.00019684,2]
[360150442,1746576649070,-421.90885159,0.00019684,2]
[360150443,1746576649079,-683.04,0.00019684,2]
[360150444,1746576649089,-923.74,0.00019684,2]
[360150445,1746576649099,-284.67177662,0.00019684,2]
[360150446,1746576649109,-450.0,0.00019684,2]
[360150447,1746576649119,-450.0,0.00019684,2]
[360150448,1746576649130,-1232.67,0.00019684,2]
[360150449,1746576649140,-1232.67,0.00019684,2]
[360150450,1746576649150,-450.0,0.00019684,2]
[360150451,1746576649159,-450.0,0.00019684,2]
[360150452,1746576649169,-450.0,0.00019684,2]
[360150453,1746576649180,-450.0,0.00019684,2]
[360150454,1746576649191,-450.0,0.00019684,2]
[360150455,1746576649201,-450.0,0.00019684,2]
[360150456,1746576649210,-450.0,0.00019684,2]
[360150457,1746576649219,-450.0,0.00019684,2]
[360150458,1746576649230,-450.0,0.00019684,2]
[360150459,1746576649239,-801.46,0.00019684,2]
[360150460,1746576649248,-801.46,0.00019684,2]
[360150461,1746576649258,-2174.76,0.00019684,2]
[360150462,1746576649267,-450.0,0.00019684,2]
[360150463,1746576649277,-450.0,0.00019684,2]
[360150464,1746576649286,-1378.56,0.00019684,2]
[360150465,1746576649296,-1378.56,0.00019684,2]
[360150466,1746576649306,-2432.93,0.00019684,2]
[360150467,1746576649315,-2432.93,0.00019684,2]
[360150468,1746576649325,-450.0,0.00019684,2]
[360150469,1746576649335,-450.0,0.00019684,2]
[360150470,1746576649346,-450.0,0.00019684,2]
[360150471,1746576649356,-450.0,0.00019684,2]
[360150472,1746576649366,-490.0,0.00019684,2]
[360150473,1746576649376,-819.33,0.00019684,2]
[360150474,1746576649385,-819.33,0.00019684,2]
[360150475,1746576649395,-450.0,0.00019684,2]
[360150476,1746576649404,-450.0,0.00019684,2]
[360150477,1746576649413,-2357.35,0.00019684,2]
[360150478,1746576649423,-330.0,0.00019684,2]
[360150479,1746576649433,-965.64,0.00019684,2]
[360150480,1746576649443,-965.64,0.00019684,2]
[360150481,1746576649452,-965.64,0.00019684,2]
[360150482,1746576649462,-450.0,0.00019684,2]
[360150483,1746576649471,-2664.99,0.00019684,2]
[360150484,1746576649481,-965.64,0.00019684,2]
[360150485,1746576649491,-450.0,0.00019684,2]
[360150486,1746576649500,-450.0,0.00019684,2]
[360150487,1746576649510,-450.0,0.00019684,2]
[360150488,1746576649520,-270.03262002,0.00019684,2]
[360150489,1746576649530,-450.0,0.00019684,2]
[360150490,1746576649539,-450.0,0.00019684,2]
[360150491,1746576649549,-603.98,0.00019684,2]
[360150492,1746576649558,-450.0,0.00019684,2]
[360150493,1746576649567,-450.0,0.00019684,2]
[360150494,1746576649577,-603.98,0.00019684,2]
[360150495,1746576649586,-450.0,0.00019684,2]
[360150496,1746576649598,-450.0,0.00019684,2]
[360150497,1746576649611,-450.0,0.00019684,2]
[360150498,1746576649620,-450.0,0.00019684,2]
[360150499,1746576649630,-450.0,0.00019684,2]
[360150500,1746576649639,-450.0,0.00019684,2]
[360150501,1746576649649,-450.0,0.00019684,2]
[360150502,1746576649658,-475.65,0.00019684,2]
[360150503,1746576649667,-450.0,0.00019684,2]
[360150504,1746576649677,-598.55798153,0.00019684,2]
[360150505,1746576649687,-450.0,0.00019684,2]
[360150506,1746576649696,-450.0,0.00019684,2]
[360150507,1746576649705,-1805.97,0.00019684,2]
[360150508,1746576649715,-1805.97,0.00019684,2]
[360150509,1746576649724,-450.0,0.00019684,2]
[360150510,1746576649733,-450.0,0.00019684,2]
[360150511,1746576649742,-450.0,0.00019684,2]
[360150512,1746576649751,-511.72,0.00019684,2]
[360150513,1746576649760,-450.0,0.00019684,2]
[360150514,1746576649769,-450.0,0.00019684,2]
[360150515,1746576649778,-511.72,0.00019684,2]
[360150516,1746576649789,-450.0,0.00019684,2]
[360150517,1746576649798,-511.72,0.00019684,2]
[360150518,1746576649807,-450.0,0.00019684,2]
[360150519,1746576649816,-533.81647386,0.00019684,2]
[360150520,1746576649826,-511.72,0.00019684,2]
[360150521,1746576649835,-504.93,0.00019684,2]
[360150522,1746576649844,-450.0,0.00019684,2]
[360150523,1746576649853,-897.99,0.00019684,2]
[360150524,1746576649863,-897.99,0.00019684,2]
[360150525,1746576649873,-450.0,0.00019684,2]
[360150526,1746576649882,-489.76,0.00019684,2]
[360150527,1746576649891,-489.76,0.00019684,2]
[360150528,1746576649901,-754.08,0.00019684,2]
[360150529,1746576649910,-754.08,0.00019684,2]
[360150530,1746576649919,-450.0,0.00019684,2]
[360150531,1746576649928,-450.0,0.00019684,2]
[360150532,1746576649937,-450.0,0.00019684,2]
[360150533,1746576649949,-450.0,0.00019684,2]
[360150534,1746576649959,-4821.41,0.00019684,2]
[360150535,1746576649968,-450.0,0.00019684,2]
[360150536,1746576649977,-512.37302934,0.00019684,2]
[360150537,1746576649987,-450.0,0.00019684,2]
[360150538,1746576649997,-196.24213029,0.00019684,2]
[360150539,1746576650006,-1407.09,0.00019684,2]
[360150540,1746576650016,-450.0,0.00019684,2]
[360150541,1746576650026,-45654.46,0.00019684,2]
[360150542,1746576650035,-594.85,0.00019684,2]
[360150543,1746576650044,-450.0,0.00019684,2]
[360150544,1746576650053,-45654.46,0.00019684,2]
[360150545,1746576650062,-440.0,0.00019684,2]
[360150546,1746576650071,-591.95,0.00019684,2]
[360150547,1746576650081,-591.95,0.00019684,2]
[360150548,1746576650090,-387.72136,0.00019684,2]
[360150549,1746576650198,-454.58,0.00019684,2]
[360150550,1746576650207,-450.0,0.00019684,2]
[360150551,1746576650216,-454.58,0.00019684,2]
[360150552,1746576650225,-29449.42,0.00019684,2]
[360150553,1746576650235,-197.67838666,0.00019684,2]
[360150554,1746576650244,-252.77343852,0.00019684,2]
[360150555,1746576650254,-1032.09,0.00019684,2]
[360150556,1746576650264,-450.0,0.00019684,2]
[360150557,1746576650274,-450.0,0.00019684,2]
[360150558,1746576650283,-661.02,0.00019684,2]
[360150559,1746576650292,-661.02,0.00019684,2]
[360150560,1746576650301,-2651.84,0.00019684,2]
[360150561,1746576650312,-2651.84,0.00019684,2]
[360150562,1746576650321,-450.0,0.00019684,2]
[360150563,1746576650331,-450.0,0.00019684,2]
[360150564,1746576650340,-657.64,0.00019684,2]
[360150565,1746576650350,-450.0,0.00019684,2]
[360150566,1746576650364,-450.0,0.00019684,2]
[360150567,1746576650373,-2407.37,0.00019684,2]
[360150568,1746576650383,-2407.37,0.00019684,2]
[360150569,1746576650393,-809.2,0.00019684,2]
[360150570,1746576650402,-450.0,0.00019684,2]
[360150571,1746576650412,-632.52,0.00019684,2]
[360150572,1746576650421,-450.0,0.00019684,2]
[360150573,1746576650431,-450.0,0.00019684,2]
[360150574,1746576650441,-632.52,0.00019684,2]
[360150575,1746576650450,-450.0,0.00019684,2]
[360150576,1746576650459,-450.0,0.00019684,2]
[360150577,1746576650469,-450.0,0.00019684,2]
[360150578,1746576650478,-450.0,0.00019684,2]
[360150579,1746576650487,-560.0,0.00019684,2]
[360150580,1746576650496,-2243.96,0.00019684,2]
[360150581,1746576650505,-2243.96,0.00019684,2]
[360150582,1746576650514,-880.23,0.00019684,2]
[360150583,1746576650525,-363.39769984,0.00019684,2]
[360150584,1746576650534,-880.23,0.00019684,2]
[360150585,1746576650543,-880.23,0.00019684,2]
[360150586,1746576650552,-880.23,0.00019684,2]
[360150587,1746576650562,-2615.18,0.00019684,2]
[360150588,1746576650571,-169.96378,0.00019684,2]
[360150589,1746576650581,-866.26,0.00019684,2]
[360150590,1746576650590,-605.15,0.00019684,2]
[360150591,1746576650599,-866.26,0.00019684,2]
[360150592,1746576650608,-605.15,0.00019684,2]
[360150593,1746576650617,-450.0,0.00019684,2]
[360150594,1746576650626,-526.54037002,0.00019684,2]
[360150595,1746576650635,-169.96378,0.00019684,2]
[360150596,1746576650645,-450.0,0.00019684,2]
[360150597,1746576650654,-450.0,0.00019684,2]
[360150598,1746576650663,-749.78,0.00019684,2]
[360150599,1746576650673,-450.0,0.00019684,2]
[360150600,1746576650682,-749.78,0.00019684,2]
[360150601,1746576650691,-450.0,0.00019684,2]
[360150602,1746576650701,-450.0,0.00019684,2]
[360150603,1746576650711,-450.0,0.00019684,2]
[360150604,1746576650720,-450.0,0.00019684,2]
[360150605,1746576650729,-450.0,0.00019684,2]
[360150606,1746576650739,-450.0,0.00019684,2]
[360150607,1746576650748,-450.0,0.00019684,2]
[360150608,1746576650757,-450.0,0.00019684,2]
[360150609,1746576650766,-450.0,0.00019684,2]
[360150610,1746576650776,-470.78,0.00019684,2]
[360150611,1746576650785,-2616.93,0.00019684,2]
[360150612,1746576650795,-1255.34,0.00019684,2]
[360150613,1746576650804,-1255.34,0.00019684,2]
[360150614,1746576650813,-450.0,0.00019684,2]
[360150615,1746576650822,-450.0,0.00019684,2]
[360150616,1746576650831,-2580.83,0.00019684,2]
[360150617,1746576650840,-450.0,0.00019684,2]
[360150618,1746576650850,-2580.83,0.00019684,2]
[360150619,1746576650859,-450.0,0.00019684,2]
[360150620,1746576650869,-2580.83,0.00019684,2]
[360150621,1746576650878,-515.91,0.00019684,2]
[360150622,1746576650888,-2580.83,0.00019684,2]
[360150623,1746576650898,-515.91,0.00019684,2]
[360150624,1746576650907,-151.0,0.00019684,2]
[360150625,1746576650916,-475.61672099,0.00019684,2]
[360150626,1746576650925,-636.19,0.00019684,2]
[360150627,1746576650934,-636.19,0.00019684,2]
[360150628,1746576650944,-1393.32,0.00019684,2]
[360150629,1746576650954,-450.0,0.00019684,2]
[360150630,1746576650964,-450.0,0.00019684,2]
[360150631,1746576650974,-450.0,0.00019684,2]
[360150632,1746576650983,-450.0,0.00019684,2]
[360150633,1746576650993,-226.15070798,0.00019684,2]
[360150634,1746576651002,-10109.91,0.00019684,2]
[360150635,1746576651012,-284.47344,0.00019684,2]
[360150636,1746576651021,-450.0,0.00019684,2]
[360150637,1746576651031,-450.0,0.00019684,2]
[360150638,1746576651040,-473.61,0.00019684,2]
[360150639,1746576651049,-473.61,0.00019684,2]
[360150640,1746576651059,-284.47344,0.00019684,2]
[360150641,1746576651068,-1474.54,0.00019684,2]
[360150642,1746576651077,-1273.09,0.00019684,2]
[360150643,1746576651087,-1273.09,0.00019684,2]
[360150644,1746576651097,-450.0,0.00019684,2]
[360150645,1746576651106,-487.02448323,0.00019684,2]
[360150646,1746576651115,-450.0,0.00019684,2]
[360150647,1746576651124,-450.0,0.00019684,2]
[360150648,1746576651133,-450.0,0.00019684,2]
[360150649,1746576651142,-450.0,0.00019684,2]
[360150650,1746576651152,-395.33792058,0.00019684,2]
[360150651,1746576651161,-870.46,0.00019684,2]
[360150652,1746576651172,-450.0,0.00019684,2]
[360150653,1746576651182,-623.27,0.00019684,2]
[360150654,1746576651193,-623.27,0.00019684,2]
[360150655,1746576651202,-623.27,0.00019684,2]
[360150656,1746576651212,-534.52,0.00019684,2]
[360150657,1746576651222,-623.27,0.00019684,2]
[360150658,1746576651231,-534.52,0.00019684,2]
[360150659,1746576651241,-450.0,0.00019684,2]
[360150660,1746576651250,-450.0,0.00019684,2]
[360150661,1746576651259,-450.0,0.00019684,2]
[360150662,1746576651268,-450.0,0.00019684,2]
[360150663,1746576651277,-1267.75,0.00019684,2]
[360150664,1746576651286,-1267.75,0.00019684,2]
[360150665,1746576651295,-450.0,0.00019684,2]
[360150666,1746576651304,-450.0,0.00019684,2]
[360150667,1746576651313,-450.0,0.00019684,2]
[360150668,1746576651325,-450.0,0.00019684,2]
[360150669,1746576651334,-450.0,0.00019684,2]
[360150670,1746576651344,-450.0,0.00019684,2]
[360150671,1746576651360,-7334.47,0.00019684,2]
[360150672,1746576651370,-450.0,0.00019684,2]
[360150673,1746576651379,-450.0,0.00019684,2]
[360150674,1746576651389,-450.0,0.00019684,2]
[360150675,1746576651398,-3661.85,0.00019684,2]
[360150676,1746576651408,-3661.85,0.00019684,2]
[360150677,1746576651417,-2212.76,0.00019684,2]
[360150678,1746576651427,-2666.0,0.00019684,2]
[360150679,1746576651438,-2666.0,0.00019684,2]
[360150680,1746576651450,-450.0,0.00019684,2]
[360150681,1746576651459,-450.0,0.00019684,2]
[360150682,1746576651468,-1696.35,0.00019684,2]
[360150683,1746576651478,-450.0,0.00019684,2]
[360150684,1746576651487,-450.0,0.00019684,2]
[360150685,1746576651497,-234.03417045,0.00019684,2]
[360150686,1746576651507,-520635.28649627,0.00019685,2]
[360150687,1746576651516,-450.0,0.00019685,2]
[360150688,1746576651527,-450.0,0.00019685,2]
[360150689,1746576651537,-450.0,0.00019685,2]
[360150690,1746576651546,-450.0,0.00019685,2]
[360150691,1746576651556,-450.0,0.00019685,2]
[360150692,1746576651566,-450.0,0.00019685,2]
[360150693,1746576651575,-683.3,0.00019685,2]
[360150694,1746576651585,-450.0,0.00019685,2]
[360150695,1746576651596,-450.0,0.00019685,2]
[360150696,1746576651605,-450.0,0.00019685,2]
[360150697,1746576651614,-450.0,0.00019685,2]
[360150698,1746576651624,-450.0,0.00019685,2]
[360150699,1746576651633,-450.0,0.00019685,2]
[360150700,1746576651643,-450.0,0.00019685,2]
[360150701,1746576651653,-500.0,0.00019685,2]
[360150702,1746576651662,-450.0,0.00019685,2]
[360150703,1746576651672,-570.0,0.00019685,2]
[360150704,1746576651682,-450.0,0.00019685,2]
[360150705,1746576651692,-450.0,0.00019685,2]
[360150706,1746576651701,-450.0,0.00019685,2]
[360150707,1746576651711,-450.0,0.00019685,2]
[360150708,1746576651720,-450.0,0.00019685,2]
[360150709,1746576651730,-450.0,0.00019685,2]
[360150710,1746576651832,-450.0,0.00019685,2]
[360150711,1746576651843,-593.15258226,0.00019685,2]
[360150712,1746576651853,-224.92581496,0.00019685,2]
[360150713,1746576651862,-450.0,0.00019685,2]
[360150714,1746576651872,-450.0,0.00019685,2]
[360150715,1746576651881,-450.0,0.00019685,2]
[360150716,1746576651891,-450.0,0.00019685,2]
[360150717,1746576651902,-450.0,0.00019685,2]
[360150718,1746576651912,-450.0,0.00019685,2]
[360150719,1746576651921,-450.0,0.00019685,2]
[360150720,1746576651931,-450.0,0.00019685,2]
[360150721,1746576651940,-450.0,0.00019685,2]
[360150722,1746576651950,-450.0,0.00019685,2]
[360150723,1746576651959,-450.0,0.00019685,2]
[360150724,1746576651968,-450.0,0.00019685,2]
[360150725,1746576651978,-500.0,0.00019685,2]
[360150726,1746576651987,-286.71,0.00019685,2]
[360150727,1746576651997,-450.0,0.00019685,2]
[360150728,1746576652007,-400.0,0.00019685,2]
[360150729,1746576652017,-450.0,0.00019685,2]
[360150730,1746576652027,-450.0,0.00019685,2]
[360150731,1746576652036,-500.0,0.00019685,2]
[360150732,1746576652046,-450.0,0.00019685,2]
[360150733,1746576652056,-450.0,0.00019685,2]
[360150734,1746576652066,-450.0,0.00019685,2]
[360150735,1746576652076,-466.51,0.00019685,2]
[360150736,1746576652086,-450.0,0.00019685,2]
[360150737,1746576652096,-450.0,0.00019685,2]
[360150738,1746576652106,-450.0,0.00019685,2]
[360150739,1746576652116,-450.0,0.00019685,2]
[360150740,1746576652126,-450.0,0.00019685,2]
[360150741,1746576652136,-486.57628982,0.00019685,2]
[360150742,1746576652146,-450.0,0.00019685,2]
[360150743,1746576652156,-450.0,0.00019685,2]
[360150744,1746576652166,-450.0,0.00019685,2]
[360150745,1746576652176,-1953.99,0.00019685,2]
[360150746,1746576652186,-450.0,0.00019685,2]
[360150747,1746576652196,-450.0,0.00019685,2]
[360150748,1746576652206,-450.0,0.00019685,2]
[360150749,1746576652216,-553.24632633,0.00019685,2]
[360150750,1746576652225,-450.0,0.00019685,2]
[360150751,1746576652235,-598.59,0.00019685,2]
[360150752,1746576652245,-547.92,0.00019685,2]
[360150753,1746576652254,-450.0,0.00019685,2]
[360150754,1746576652265,-1356.61,0.00019685,2]
[360150755,1746576652275,-450.0,0.00019685,2]
[360150756,1746576652285,-450.0,0.00019685,2]
[360150757,1746576652294,-470.0,0.00019685,2]
[360150758,1746576652304,-450.0,0.00019685,2]
[360150759,1746576652314,-462.55021192,0.00019685,2]
[360150760,1746576652323,-300.0,0.00019685,2]
[360150761,1746576652333,-450.0,0.00019685,2]
[360150762,1746576652343,-450.0,0.00019685,2]
[360150763,1746576652354,-450.0,0.00019685,2]
[360150764,1746576652365,-450.0,0.00019685,2]
[360150765,1746576652374,-450.0,0.00019685,2]
[360150766,1746576652384,-450.0,0.00019685,2]
[360150767,1746576652395,-450.0,0.00019685,2]
[360150768,1746576652404,-450.0,0.00019685,2]
[360150769,1746576652414,-450.0,0.00019685,2]
[360150770,1746576652423,-450.0,0.00019685,2]
[360150771,1746576652433,-450.0,0.00019685,2]
[360150772,1746576652441,-450.0,0.00019685,2]
[360150773,1746576652451,-450.0,0.00019685,2]
[360150774,1746576652460,-450.0,0.00019685,2]
[360150775,1746576652470,-450.0,0.00019685,2]
[360150776,1746576652479,-450.0,0.00019685,2]
[360150777,1746576652488,-450.0,0.00019685,2]
[360150778,1746576652497,-450.0,0.00019685,2]
[360150779,1746576652507,-450.0,0.00019685,2]
[360150780,1746576652516,-253.23684363,0.00019685,2]
[360150781,1746576652525,-450.0,0.00019685,2]
[360150782,1746576652535,-450.0,0.00019685,2]
[360150783,1746576652544,-503.78,0.00019685,2]
[360150784,1746576652553,-450.0,0.00019685,2]
[360150785,1746576652562,-450.0,0.00019685,2]
[360150786,1746576652571,-722.34,0.00019685,2]
[360150787,1746576652580,-500.0,0.00019685,2]
[360150788,1746576652589,-486.75,0.00019685,2]
[360150789,1746576652599,-450.83,0.00019685,2]
[360150790,1746576652608,-450.0,0.00019685,2]
[360150791,1746576652617,-450.0,0.00019685,2]
[360150792,1746576652627,-472.18731909,0.00019685,2]
[360150793,1746576652636,-151.0,0.00019685,2]
[360150794,1746576652646,-450.0,0.00019685,2]
[360150795,1746576652656,-450.0,0.00019685,2]
[360150796,1746576652665,-1212.95,0.00019685,2]
[360150797,1746576652675,-1165.65,0.00019685,2]
[360150798,1746576652684,-1165.65,0.00019685,2]
[360150799,1746576652693,-450.0,0.00019685,2]
[360150800,1746576652705,-450.0,0.00019685,2]
[360150801,1746576652715,-796.09,0.00019685,2]
[360150802,1746576652724,-872.55,0.00019685,2]
[360150803,1746576652733,-151.0,0.00019685,2]
[360150804,1746576652742,-450.0,0.00019685,2]
[360150805,1746576652752,-706.8,0.00019685,2]
[360150806,1746576652761,-450.0,0.00019685,2]
[360150807,1746576652770,-450.0,0.00019685,2]
[360150808,1746576652779,-450.0,0.00019685,2]
[360150809,1746576652789,-450.0,0.00019685,2]
[360150810,1746576652798,-450.0,0.00019685,2]
[360150811,1746576652808,-450.0,0.00019685,2]
[360150812,1746576652817,-450.0,0.00019685,2]
[360150813,1746576652826,-2926.55,0.00019685,2]
[360150814,1746576652836,-450.0,0.00019685,2]
[360150815,1746576652846,-450.0,0.00019685,2]
[360150816,1746576652856,-450.0,0.00019685,2]
[360150817,1746576652865,-450.0,0.00019685,2]
[360150818,1746576652875,-450.0,0.00019685,2]
[360150819,1746576652885,-450.0,0.00019685,2]
[360150820,1746576652894,-832.05,0.00019685,2]
[360150821,1746576652904,-450.0,0.00019685,2]
[360150822,1746576652913,-497.64,0.00019685,2]
[360150823,1746576652923,-450.0,0.00019685,2]
[360150824,1746576652934,-450.0,0.00019685,2]
[360150825,1746576652946,-450.0,0.00019685,2]
[360150826,1746576652955,-450.0,0.00019685,2]
[360150827,1746576652965,-450.0,0.00019685,2]
[360150828,1746576652974,-528.31027122,0.00019685,2]
[360150829,1746576652990,-450.0,0.00019685,2]
[360150830,1746576652999,-488.15,0.00019685,2]
[360150831,1746576653010,-414.76443573,0.00019685,2]
[360150832,1746576653020,-450.0,0.00019685,2]
[360150833,1746576653029,-763.53,0.00019685,2]
[360150834,1746576653039,-450.0,0.00019685,2]
[360150835,1746576653049,-450.0,0.00019685,2]
[360150836,1746576653058,-412.52998212,0.00019685,2]
[360150837,1746576653068,-450.0,0.00019685,2]
[360150838,1746576653078,-450.0,0.00019685,2]
[360150839,1746576653088,-769.22,0.00019685,2]
[360150840,1746576653098,-450.0,0.00019685,2]
[360150841,1746576653107,-450.0,0.00019685,2]
[360150842,1746576653116,-450.0,0.00019685,2]
[360150843,1746576653126,-450.0,0.00019685,2]
[360150844,1746576653136,-450.0,0.00019685,2]
[360150845,1746576653146,-787.63,0.00019685,2]
[360150846,1746576653155,-610.67,0.00019685,2]
[360150847,1746576653165,-610.67,0.00019685,2]
[360150848,1746576653174,-450.0,0.00019685,2]
[360150849,1746576653184,-484.32,0.00019685,2]
[360150850,1746576653194,-450.0,0.00019685,2]
[360150851,1746576653204,-450.0,0.00019685,2]
[360150852,1746576653214,-450.0,0.00019685,2]
[360150853,1746576653223,-621.48,0.00019685,2]
[360150854,1746576653232,-450.0,0.00019685,2]
[360150855,1746576653243,-450.0,0.00019685,2]
[360150856,1746576653253,-450.0,0.00019685,2]
[360150857,1746576653264,-450.0,0.00019685,2]
[360150858,1746576653273,-450.0,0.00019685,2]
[360150859,1746576653378,-788.76,0.00019685,2]
[360150860,1746576653387,-450.0,0.00019685,2]
[360150861,1746576653398,-450.0,0.00019685,2]
[360150862,1746576653408,-450.0,0.00019685,2]
[360150863,1746576653417,-628.81,0.00019685,2]
[360150864,1746576653427,-450.0,0.00019685,2]
[360150865,1746576653437,-450.0,0.00019685,2]
[360150866,1746576653447,-450.0,0.00019685,2]
[360150867,1746576653457,-450.0,0.00019685,2]
[360150868,1746576653466,-450.0,0.00019685,2]
[360150869,1746576653475,-450.0,0.00019685,2]
[360150870,1746576653484,-450.0,0.00019685,2]
[360150871,1746576653493,-445.70357789,0.00019685,2]
[360150872,1746576653502,-450.0,0.00019685,2]
[360150873,1746576653512,-450.0,0.00019685,2]
[360150874,1746576653522,-450.0,0.00019685,2]
[360150875,1746576653531,-837.22,0.00019685,2]
[360150876,1746576653541,-450.0,0.00019685,2]
[360150877,1746576653551,-450.0,0.00019685,2]
[360150878,1746576653560,-450.0,0.00019685,2]
[360150879,1746576653570,-1335.68113535,0.00019685,2]
[360150880,1746576653579,-450.0,0.00019685,2]
[360150881,1746576653588,-450.0,0.00019685,2]
[360150882,1746576653598,-268.13,0.00019685,2]
[360150883,1746576653607,-450.0,0.00019685,2]
[360150884,1746576653616,-450.0,0.00019685,2]
[360150885,1746576653626,-470.0,0.00019685,2]
[360150886,1746576653635,-450.0,0.00019685,2]
[360150887,1746576653644,-450.0,0.00019685,2]
[360150888,1746576653654,-151.0,0.00019685,2]
[360150889,1746576653663,-450.0,0.00019685,2]
[360150890,1746576653672,-450.0,0.00019685,2]
[360150891,1746576653682,-450.0,0.00019685,2]
[360150892,1746576653691,-450.0,0.00019685,2]
[360150893,1746576653701,-450.0,0.00019685,2]
[360150894,1746576653710,-450.0,0.00019685,2]
[360150895,1746576653720,-635.88,0.00019685,2]
[360150896,1746576653729,-450.0,0.00019685,2]
[360150897,1746576653739,-450.0,0.00019685,2]
[360150898,1746576653748,-466.00729015,0.00019685,2]
[360150899,1746576653757,-450.0,0.00019685,2]
[360150900,1746576653767,-450.0,0.00019685,2]
[360150901,1746576653776,-450.0,0.00019685,2]
[360150902,1746576653785,-450.0,0.00019685,2]
[360150903,1746576653794,-1080.15,0.00019685,2]
[360150904,1746576653804,-467.16,0.00019685,2]
[360150905,1746576653813,-450.0,0.00019685,2]
[360150906,1746576653822,-450.0,0.00019685,2]
[360150907,1746576653832,-550.0,0.00019685,2]
[360150908,1746576653842,-450.0,0.00019685,2]
[360150909,1746576653851,-151.0,0.00019685,7]
[360150910,1746576653861,-1106.73,0.00019685,2]
[360150911,1746576653870,-845.89,0.00019685,2]
[360150912,1746576653880,-845.89,0.00019685,2]
[360150913,1746576653889,-450.0,0.00019685,2]
[360150914,1746576653899,-450.0,0.00019685,2]
[360150915,1746576653908,-485.38,0.00019685,2]
[360150916,1746576653918,-485.38,0.00019685,2]
[360150917,1746576653927,-450.0,0.00019685,2]
[360150918,1746576653937,-911.99,0.00019685,2]
[360150919,1746576653947,-395.4,0.00019685,2]
[360150920,1746576653956,-450.0,0.00019685,2]